Workbook

Sheet 表1.一般公共预算收入表
A1: 表1
A2: 2024年槐荫区一般公共预算收入决算表
F3: 单位：万元
A4: 项目 | B4: 2024年预期数 | C4: 2024年调整预期数 | D4: 2024年决算数 | G4: 2023
D5: 金额 | E5: 占调整预期% | F5: 比上年增长%
A6: 一、增值税 | B6: =217392+418.545-1040.545 -> 216,770 | C6: 176,313 | D6: 178,937 | E6: =D6/C6*100 -> 101.5 | F6: =(D6/G6-1)*100 -> -11.7 | G6: 202,543
A7: 二、企业所得税 | B7: 57,850 | C7: 52,390 | D7: 50,437 | E7: =D7/C7*100 -> 96.3 | F7: =(D7/G7-1)*100 -> -6.7 | G7: 54,079
A8: 三、个人所得税 | B8: 35,120 | C8: 30,546 | D8: 31,674 | E8: 103.7 | F8: -0.2 | G8: 31,741
A9: 四、资源税 | B9: 400 | C9: 246 | D9: 247 | E9: 100.4 | F9: -24.3 | G9: 326
A10: 五、城市维护建设税 | B10: 27,600 | C10: 21,715 | D10: 22,111 | E10: 101.8 | F10: -13.5 | G10: 25,565
A11: 六、房产税 | B11: 25,000 | C11: 36,359 | D11: 34,134 | E11: 93.9 | F11: 55.9 | G11: 21,890
A12: 七、印花税 | B12: 12,130 | C12: 11,671 | D12: 11,114 | E12: 95.2 | F12: 6.1 | G12: 10,471
A13: 八、城镇土地使用税 | B13: 15,300 | C13: 16,150 | D13: 15,402 | E13: 95.4 | F13: 15.2 | G13: 13,368
A14: 九、土地增值税 | B14: 71,600 | C14: 67,139 | D14: 71,084 | E14: 105.9 | F14: -1.3 | G14: 72,019
A15: 十、车船税 | B15: 1,300 | C15: 1,609 | D15: 1,591 | E15: 98.9 | F15: 55.3 | G15: 1,025
A16: 十一、耕地占用税 | B16: 650 | C16: 1,130 | D16: 1,461 | E16: 129.3 | F16: 138.0 | G16: 614
A17: 十二、契税 | B17: 70,930 | C17: 57,851 | D17: 58,493 | E17: 101.1 | F17: -6.9 | G17: 62,851
A18: 十三、环保税 | B18: 140 | C18: 200 | D18: 341 | E18: 170.5 | F18: 243.0 | G18: 99
A19: 十四、其他税收 | B19: 210 | C19: 1,681 | D19: 1,573 | E19: 93.6 | F19: 752.2 | G19: 185
A20: 十五、专项收入 | B20: 15,000 | C20: 12,078 | D20: 12,384 | E20: 102.5 | F20: -19.0 | G20: 15,293
A21: 十六、行政事业性收费收入 | B21: =18940+1062 -> 20,002 | C21: 13,662 | D21: 15,268 | E21: 111.8 | F21: -15.0 | G21: 17,966
A22: 十七、罚没收入 | B22: 5,800 | C22: 12,606 | D22: 12,632 | E22: 100.2 | F22: 126.5 | G22: 5,576
A23: 十八、国有资本经营收入 | F23: -100.0 | G23: 322
A24: 十九、国有资源（资产）有偿使用收入 | B24: 27,382 | C24: 52,642 | D24: 50,439 | E24: =D24/C24*100 -> 95.8 | F24: =(D24/G24-1)*100 -> 66.2 | G24: 30,348
A25: 二十、捐赠 | B25: 16 | C25: 4 | D25: 4 | E25: 100.0 | F25: -74.2 | G25: 16
A26: 二十一、其他收入 | B26: 1,100 | C26: 1,008 | D26: 1,798 | E26: 178.4 | F26: 64.0 | G26: 1,096
A27: 一般公共预算收入合计 | B27: =SUM(B6:B26) -> 604,300 | C27: =SUM(C6:C26) -> 567,000 | D27: =SUM(D6:D26) -> 571,124 | E27: 100.7 | F27: 0.7 | G27: =SUM(G6:G26) -> 567,393
A28: 债务收入 | B28: =B29 -> 5,400 | C28: =C29 -> 5,400 | D28: =D29 -> 5,400 | E28: 100.0 | F28: -55.0 | G28: 12,000
A29: 地方政府债券收入 | B29: 5,400 | C29: 5,400 | D29: 5,400 | E29: 100.0 | F29: -55.0 | G29: 12,000
A30: 转移性收入 | B30: =B31+B32+B33+B34+B35 -> 47,321 | C30: =C31+C32+C33+C34+C35 -> 134,336 | D30: =D31+D32+D33+D34+D35 -> 148,169 | E30: 110.3 | F30: -14.9 | G30: =SUM(G31:G35) -> 174,053
A31: 返还性收入 | B31: 38,465 | C31: 38,465 | D31: 38,465 | E31: 100.0 | F31: 0.0 | G31: 38,465
A32: 一般性转移支付收入 | B32: 8,856 | C32: =63033+5000 -> 68,033 | D32: 74,860 | E32: 110.0 | F32: 30.3 | G32: 57,470
A33: 专项转移支付收入 | C33: =10976+2000 -> 12,976 | D33: 17,036 | E33: 131.3 | F33: -37.0 | G33: 27,051
A34: 区域间转移性收入 | F34: -100.0 | G34: 291
A35: 动用预算稳定调节基金及调入资金 | C35: =12000+2862 -> 14,862 | D35: 17,808 | E35: =D35/C35*100 -> 119.8 | F35: -64.9 | G35: 50,776
A36: 上年结转及结余收入 | B36: 13,538 | C36: 16,538 | D36: 16,538 | E36: =D36/C36*100 -> 100.0 | F36: -54.3 | G36: 36,184
A37: 总收入合计 | B37: =B27+B28+B30+B36 -> 670,560 | C37: =C27+C28+C30+C36 -> 723,274 | D37: =D27+D28+D30+D36 -> 741,231 | E37: =D37/C37*100 -> 102.5 | F37: -6.1 | G37: =G27+G28+G30+G36 -> 789,630

Sheet 表2.一般公共预算支出表
A1: 表2
A2: 2024年槐荫区一般公共预算支出决算表
E3: 单位：万元
A4: 项目 | B4: 2024年调整预算数 | C4: 2024年决算数（含转移支付） | F4: 2023决算数
C5: 金额 | D5: 占调整预算% | E5: 比上年同比增长%
A6: 一、一般公共服务支出 | B6: 50,135 | C6: 54,782 | D6: =C6/B6*100 -> 109.3 | E6: =(C6-F6)/F6*100 -> -31.0 | F6: 79,360
A7: 二、国防支出 | B7: 80 | C7: 101 | D7: 126.3 | E7: -87.7 | F7: 823
A8: 三、公共安全支出 | B8: 11,951 | C8: 12,674 | D8: 106.0 | E8: -21.9 | F8: 16,233
A9: 四、教育支出 | B9: 124,000 | C9: 123,290 | D9: 99.4 | E9: 1.9 | F9: 121,040
A10: 五、科学技术支出 | B10: 1,381 | C10: 1,200 | D10: 86.9 | E10: -40.4 | F10: 2,015
A11: 六、文化旅游体育与传媒支出 | B11: 1,375 | C11: 1,700 | D11: 123.6 | E11: -28.3 | F11: 2,372
A12: 七、社会保障和就业支出 | B12: 101,348 | C12: 110,236 | D12: 108.8 | E12: -13.8 | F12: 127,949
A13: 八、卫生健康支出 | B13: 50,792 | C13: 46,568 | D13: 91.7 | E13: -25.3 | F13: 62,333
A14: 九、节能环保支出 | B14: 946 | C14: 905 | D14: 95.7 | E14: -68.8 | F14: 2,896
A15: 十、城乡社区支出 | B15: 43,280 | C15: 33,429 | D15: 77.2 | E15: -8.9 | F15: 36,705
A16: 十一、农林水支出 | B16: =11577-2500 -> 9,077 | C16: 13,399 | D16: 147.6 | E16: 0.1 | F16: 13,383
A17: 十二、交通运输支出 | E17: -100.0 | F17: 62
A18: 十三、资源勘探信息等支出 | B18: 2,561 | C18: 2,638 | D18: 103.0 | E18: -56.1 | F18: 6,015
A19: 十四、商业服务业等支出 | B19: 2,098 | C19: 1,034 | D19: 49.3 | E19: -22.5 | F19: 1,335
A20: 十五、金融支出 | B20: 29 | C20: 32 | D20: =C20/B20*100 -> 110.3 | E20: -85.3 | F20: 217
A21: 十六、援助其他地区支出 | B21: 683 | C21: 737 | D21: 107.9 | E21: 0.0 | F21: 737
A22: 十七、自然资源海洋气象等支出 | B22: 1,352 | C22: 1,754 | D22: 129.7 | E22: -13.7 | F22: 2,032
A23: 十八、住房保障支出 | B23: 10,307 | C23: 12,500 | D23: 121.3 | E23: -23.7 | F23: 16,380
A24: 十九、粮油物资储备支出 | F24: 100
A25: 二十、灾害防治及应急管理支出 | B25: 1,821 | C25: 1,977 | D25: =C25/B25*100 -> 108.6 | E25: =(C25-F25)/F25*100 -> 5.3 | F25: 1,877
A26: 二十一、预备费 | F26: 0
A27: 二十二、债务付息支出 | B27: 1,796 | C27: 1,796 | D27: 100.0 | E27: -1.8 | F27: 1,829
A28: 二十三、其他支出 | F28: 0
A29: 一般公共预算支出合计 | B29: =SUM(B6:B28) -> 415,012 | C29: =SUM(C6:C28) -> 420,752 | D29: 101.4 | E29: -15.1 | F29: 495,693
A30: 转移性支出 | B30: =SUM(B31:B35) -> 273,262 | C30: =SUM(C31:C35) -> 275,512 | D30: 100.8 | E30: -0.7 | F30: 277,399
A31: 上解支出 | B31: 265,000 | C31: 270,112 | D31: 101.9 | E31: 2.9 | F31: 262,537
A32: 区域间转移性支出
A33: 调出资金
A34: 安排预算稳定调节基金 | B34: 2,862 | F34: 2,862
A35: 债务还本支出 | B35: 5,400 | C35: 5,400 | D35: =C35/B35*100 -> 100.0 | E35: =(C35-F35)/F35*100 -> -55.0 | F35: 12,000
A36: 结转下年支出 | B36: 35,000 | C36: 44,967 | D36: =C36/B36*100 -> 128.5 | E36: =(C36-F36)/F36*100 -> 171.9 | F36: 16,538
A37: 总支出合计 | B37: =B36+B30+B29 -> 723,274 | C37: =C36+C30+C29 -> 741,231 | D37: =C37/B37*100 -> 102.5 | E37: =(C37-F37)/F37*100 -> -6.1 | F37: 789,630

Sheet 表3.本级一般公共预算收入
A1: 表3
A2: 2024年槐荫区本级一般公共预算收入决算表
F3: 单位：万元
A4: 项目 | B4: 2024年预期数 | C4: 2024年调整预期数 | D4: 2024年决算数 | G4: 2023
D5: 金额 | E5: 占调整预期% | F5: 比上年增长%
A6: 一、增值税 | B6: =217392+418.545-1040.545 -> 216,770 | C6: 176,313 | D6: 178,937 | E6: =D6/C6*100 -> 101.5 | F6: =(D6/G6-1)*100 -> -11.7 | G6: 202,543
A7: 二、企业所得税 | B7: 57,850 | C7: 52,390 | D7: 50,437 | E7: 96.3 | F7: -6.7 | G7: 54,079
A8: 三、个人所得税 | B8: 35,120 | C8: 30,546 | D8: 31,674 | E8: 103.7 | F8: -0.2 | G8: 31,741
A9: 四、资源税 | B9: 400 | C9: 246 | D9: 247 | E9: 100.4 | F9: -24.3 | G9: 326
A10: 五、城市维护建设税 | B10: 27,600 | C10: 21,715 | D10: 22,111 | E10: 101.8 | F10: -13.5 | G10: 25,565
A11: 六、房产税 | B11: 25,000 | C11: 36,359 | D11: 34,134 | E11: 93.9 | F11: 55.9 | G11: 21,890
A12: 七、印花税 | B12: 12,130 | C12: 11,671 | D12: 11,114 | E12: 95.2 | F12: 6.1 | G12: 10,471
A13: 八、城镇土地使用税 | B13: 15,300 | C13: 16,150 | D13: 15,402 | E13: 95.4 | F13: 15.2 | G13: 13,368
A14: 九、土地增值税 | B14: 71,600 | C14: 67,139 | D14: 71,084 | E14: 105.9 | F14: -1.3 | G14: 72,019
A15: 十、车船税 | B15: 1,300 | C15: 1,609 | D15: 1,591 | E15: 98.9 | F15: 55.3 | G15: 1,025
A16: 十一、耕地占用税 | B16: 650 | C16: 1,130 | D16: 1,461 | E16: 129.3 | F16: 138.0 | G16: 614
A17: 十二、契税 | B17: 70,930 | C17: 57,851 | D17: 58,493 | E17: 101.1 | F17: -6.9 | G17: 62,851
A18: 十三、环保税 | B18: 140 | C18: 200 | D18: 341 | E18: 170.5 | F18: 243.0 | G18: 99
A19: 十四、其他税收 | B19: 210 | C19: 1,681 | D19: 1,573 | E19: 93.6 | F19: 752.2 | G19: 185
A20: 十五、专项收入 | B20: 15,000 | C20: 12,078 | D20: 12,384 | E20: 102.5 | F20: -19.0 | G20: 15,293
A21: 十六、行政事业性收费收入 | B21: =18940+1062 -> 20,002 | C21: 13,662 | D21: 15,268 | E21: 111.8 | F21: -15.0 | G21: 17,966
A22: 十七、罚没收入 | B22: 5,800 | C22: 12,606 | D22: 12,632 | E22: 100.2 | F22: 126.5 | G22: 5,576
A23: 十八、国有资本经营收入 | F23: -100.0 | G23: 322
A24: 十九、国有资源（资产）有偿使用收入 | B24: 27,382 | C24: 52,642 | D24: 50,439 | E24: =D24/C24*100 -> 95.8 | F24: 66.2 | G24: 30,348
A25: 二十、捐赠 | B25: 16 | C25: 4 | D25: 4 | E25: 100.0 | F25: -74.2 | G25: 16
A26: 二十一、其他收入 | B26: 1,100 | C26: 1,008 | D26: 1,798 | E26: 178.4 | F26: 64.0 | G26: 1,096
A27: 一般公共预算收入合计 | B27: =SUM(B6:B26) -> 604,300 | C27: 567,000 | D27: 571,124 | E27: 100.7 | F27: 0.7 | G27: 567,393
A28: 债务收入 | B28: =B29 -> 5,400 | C28: =C29 -> 5,400 | D28: =D29 -> 5,400 | E28: 100.0 | F28: -55.0 | G28: 12,000
A29: 地方政府债券收入 | B29: 5,400 | C29: 5,400 | D29: 5,400 | E29: 100.0 | F29: -55.0 | G29: 12,000
A30: 转移性收入 | B30: =B31+B32+B33+B34+B35 -> 47,321 | C30: =C31+C32+C33+C34+C35 -> 134,336 | D30: =D31+D32+D33+D34+D35 -> 148,169 | E30: 110.3 | F30: -14.9 | G30: =SUM(G31:G35) -> 174,053
A31: 返还性收入 | B31: 38,465 | C31: 38,465 | D31: 38,465 | E31: 100.0 | F31: 0.0 | G31: 38,465
A32: 一般性转移支付收入 | B32: 8,856 | C32: =63033+5000 -> 68,033 | D32: 74,860 | E32: 110.0 | F32: 30.3 | G32: 57,470
A33: 专项转移支付收入 | C33: =10976+2000 -> 12,976 | D33: 17,036 | E33: 131.3 | F33: -37.0 | G33: 27,051
A34: 区域间转移性收入 | F34: -100.0 | G34: 291
A35: 动用预算稳定调节基金及调入资金 | C35: =12000+2862 -> 14,862 | D35: 17,808 | E35: =D35/C35*100 -> 119.8 | F35: -64.9 | G35: 50,776
A36: 上年结转及结余收入 | B36: 13,538 | C36: 16,538 | D36: 16,538 | E36: 100.0 | F36: -54.3 | G36: 36,184
A37: 总收入合计 | B37: =B27+B28+B30+B36 -> 670,560 | C37: 723,274 | D37: 741,231 | E37: 102.5 | F37: -6.1 | G37: 789,630

Sheet 表4.本级一般公共预算支出
A1: 表4
A2: 2024年槐荫区本级一般公共预算支出决算表
E3: 单位：万元
A4: 项目 | B4: 2024年调整预算数 | C4: 2024年决算数（含转移支付） | F4: 2023决算数
C5: 金额 | D5: 占调整预算% | E5: 比上年同比增长%
A6: 一、一般公共服务支出 | B6: 50,135 | C6: 54,782 | D6: =C6/B6*100 -> 109.3 | E6: =(C6-F6)/F6*100 -> -31.0 | F6: 79,360
A7: 二、国防支出 | B7: 80 | C7: 101 | D7: 126.3 | E7: -87.7 | F7: 823
A8: 三、公共安全支出 | B8: 11,951 | C8: 12,674 | D8: 106.0 | E8: -21.9 | F8: 16,233
A9: 四、教育支出 | B9: 124,000 | C9: 123,290 | D9: 99.4 | E9: 1.9 | F9: 121,040
A10: 五、科学技术支出 | B10: 1,381 | C10: 1,200 | D10: 86.9 | E10: -40.4 | F10: 2,015
A11: 六、文化旅游体育与传媒支出 | B11: 1,375 | C11: 1,700 | D11: 123.6 | E11: -28.3 | F11: 2,372
A12: 七、社会保障和就业支出 | B12: 101,348 | C12: 110,236 | D12: 108.8 | E12: -13.8 | F12: 127,949
A13: 八、卫生健康支出 | B13: 50,792 | C13: 46,568 | D13: 91.7 | E13: -25.3 | F13: 62,333
A14: 九、节能环保支出 | B14: 946 | C14: 905 | D14: 95.7 | E14: -68.8 | F14: 2,896
A15: 十、城乡社区支出 | B15: 43,280 | C15: 33,429 | D15: 77.2 | E15: -8.9 | F15: 36,705
A16: 十一、农林水支出 | B16: =11577-2500 -> 9,077 | C16: 13,399 | D16: 147.6 | E16: 0.1 | F16: 13,383
A17: 十二、交通运输支出 | E17: -100.0 | F17: 62
A18: 十三、资源勘探信息等支出 | B18: 2,561 | C18: 2,638 | D18: =C18/B18*100 -> 103.0 | E18: -56.1 | F18: 6,015
A19: 十四、商业服务业等支出 | B19: 2,098 | C19: 1,034 | D19: 49.3 | E19: -22.5 | F19: 1,335
A20: 十五、金融支出 | B20: 29 | C20: 32 | D20: 110.3 | E20: -85.3 | F20: 217
A21: 十六、援助其他地区支出 | B21: 683 | C21: 737 | D21: 107.9 | E21: 0.0 | F21: 737
A22: 十七、自然资源海洋气象等支出 | B22: 1,352 | C22: 1,754 | D22: 129.7 | E22: -13.7 | F22: 2,032
A23: 十八、住房保障支出 | B23: 10,307 | C23: 12,500 | D23: 121.3 | E23: -23.7 | F23: 16,380
A24: 十九、粮油物资储备支出 | F24: 100
A25: 二十、灾害防治及应急管理支出 | B25: 1,821 | C25: 1,977 | D25: =C25/B25*100 -> 108.6 | E25: =(C25-F25)/F25*100 -> 5.3 | F25: 1,877
A26: 二十一、预备费 | F26: 0
A27: 二十二、债务付息支出 | B27: 1,796 | C27: 1,796 | D27: 100.0 | E27: -1.8 | F27: 1,829
A28: 二十三、其他支出 | F28: 0
A29: 一般公共预算支出合计 | B29: =SUM(B6:B28) -> 415,012 | C29: =SUM(C6:C28) -> 420,752 | D29: 101.4 | E29: -15.1 | F29: 495,693
A30: 转移性支出 | B30: =SUM(B31:B35) -> 273,262 | C30: =SUM(C31:C35) -> 275,512 | D30: 100.8 | E30: -0.7 | F30: 277,399
A31: 上解支出 | B31: 265,000 | C31: 270,112 | D31: 101.9 | E31: 2.9 | F31: 262,537
A32: 区域间转移性支出
A33: 调出资金
A34: 安排预算稳定调节基金 | B34: 2,862 | F34: 2,862
A35: 债务还本支出 | B35: 5,400 | C35: 5,400 | D35: =C35/B35*100 -> 100.0 | E35: =(C35-F35)/F35*100 -> -55.0 | F35: 12,000
A36: 结转下年支出 | B36: 35,000 | C36: 44,967 | D36: 128.5 | E36: 171.9 | F36: 16,538
A37: 总支出合计 | B37: =B36+B30+B29 -> 723,274 | C37: =C36+C30+C29 -> 741,231 | D37: 102.5 | E37: -6.1 | F37: 789,630

Sheet 表5.本级一般公共预算功能分类
A1: 表5
A2: 2024年槐荫区本级一般公共预算支出决算表（功能分类）
A3: 单位：万元
A4: 科目编码 | B4: 科目名称 | C4: 决算数
B5: 一般公共预算支出 | C5: 420,752
A6: 201 | B6: 一般公共服务支出 | C6: =C7+C19+C28+C38+C49+C60+C71+C79+C88+C101+C110+C121+C133+C140+C148+C154+C161+C168+C175+C182+C189+C197+C203+C209+C216+C231+C238+C244 -> 54,782
A7: 20101 | B7: 人大事务 | C7: =SUM(C8:C18) -> 1,140
A8: 2010101 | B8: 行政运行 | C8: 982
A9: 2010102 | B9: 一般行政管理事务
A10: 2010103 | B10: 机关服务
A11: 2010104 | B11: 人大会议 | C11: 30
A12: 2010105 | B12: 人大立法
A13: 2010106 | B13: 人大监督 | C13: 19
A14: 2010107 | B14: 人大代表履职能力提升 | C14: 8
A15: 2010108 | B15: 代表工作 | C15: 61
A16: 2010109 | B16: 人大信访工作
A17: 2010150 | B17: 事业运行 | C17: 40
A18: 2010199 | B18: 其他人大事务支出
A19: 20102 | B19: 政协事务 | C19: =SUM(C20:C27) -> 826
A20: 2010201 | B20: 行政运行 | C20: 798
A21: 2010202 | B21: 一般行政管理事务
A22: 2010203 | B22: 机关服务
A23: 2010204 | B23: 政协会议
A24: 2010205 | B24: 委员视察
A25: 2010206 | B25: 参政议政
A26: 2010250 | B26: 事业运行 | C26: 28
A27: 2010299 | B27: 其他政协事务支出
A28: 20103 | B28: 政府办公厅(室)及相关机构事务 | C28: =SUM(C29:C37) -> 25,563
A29: 2010301 | B29: 行政运行 | C29: 15,286
A30: 2010302 | B30: 一般行政管理事务
A31: 2010303 | B31: 机关服务
A32: 2010304 | B32: 专项服务
A33: 2010305 | B33: 专项业务及机关事务管理 | C33: 32
A34: 2010306 | B34: 政务公开审批
A35: 2010309 | B35: 参事事务 | C35: 16
A36: 2010350 | B36: 事业运行 | C36: 10,229
A37: 2010399 | B37: 其他政府办公厅(室)及相关机构事务支出
A38: 20104 | B38: 发展与改革事务 | C38: =SUM(C39:C48) -> 1,726
A39: 2010401 | B39: 行政运行 | C39: 916
A40: 2010402 | B40: 一般行政管理事务 | C40: 9
A41: 2010403 | B41: 机关服务
A42: 2010404 | B42: 战略规划与实施 | C42: 26
A43: 2010405 | B43: 日常经济运行调节 | C43: 6
A44: 2010406 | B44: 社会事业发展规划
A45: 2010407 | B45: 经济体制改革研究
A46: 2010408 | B46: 物价管理 | C46: 2
A47: 2010450 | B47: 事业运行 | C47: 394
A48: 2010499 | B48: 其他发展与改革事务支出 | C48: 373
A49: 20105 | B49: 统计信息事务 | C49: =SUM(C50:C59) -> 893
A50: 2010501 | B50: 行政运行 | C50: 302
A51: 2010502 | B51: 一般行政管理事务
A52: 2010503 | B52: 机关服务
A53: 2010504 | B53: 信息事务
A54: 2010505 | B54: 专项统计业务
A55: 2010506 | B55: 统计管理
A56: 2010507 | B56: 专项普查活动 | C56: 29
A57: 2010508 | B57: 统计抽样调查 | C57: 83
A58: 2010550 | B58: 事业运行 | C58: 164
A59: 2010599 | B59: 其他统计信息事务支出 | C59: 315
A60: 20106 | B60: 财政事务 | C60: =SUM(C61:C70) -> 1,405
A61: 2010601 | B61: 行政运行 | C61: 1,019
A62: 2010602 | B62: 一般行政管理事务
A63: 2010603 | B63: 机关服务
A64: 2010604 | B64: 预算改革业务
A65: 2010605 | B65: 财政国库业务
A66: 2010606 | B66: 财政监察
A67: 2010607 | B67: 信息化建设
A68: 2010608 | B68: 财政委托业务支出
A69: 2010650 | B69: 事业运行 | C69: 386
A70: 2010699 | B70: 其他财政事务支出
A71: 20107 | B71: 税收事务 | C71: =SUM(C72:C78) -> 6,650
A72: 2010701 | B72: 行政运行 | C72: 6,050
A73: 2010702 | B73: 一般行政管理事务
A74: 2010703 | B74: 机关服务
A75: 2010709 | B75: 信息化建设
A76: 2010710 | B76: 税收业务 | C76: 600
A77: 2010750 | B77: 事业运行
A78: 2010799 | B78: 其他税收事务支出
A79: 20108 | B79: 审计事务 | C79: =SUM(C80:C87) -> 444
A80: 2010801 | B80: 行政运行 | C80: 310
A81: 2010802 | B81: 一般行政管理事务
A82: 2010803 | B82: 机关服务
A83: 2010804 | B83: 审计业务
A84: 2010805 | B84: 审计管理
A85: 2010806 | B85: 信息化建设
A86: 2010850 | B86: 事业运行 | C86: 134
A87: 2010899 | B87: 其他审计事务支出
A88: 20109 | B88: 海关事务 | C88: =SUM(C89:C100) -> 0
A89: 2010901 | B89: 行政运行
A90: 2010902 | B90: 一般行政管理事务
A91: 2010903 | B91: 机关服务
A92: 2010905 | B92: 缉私办案
A93: 2010907 | B93: 口岸管理
A94: 2010908 | B94: 信息化建设
A95: 2010909 | B95: 海关关务
A96: 2010910 | B96: 关税征管
A97: 2010911 | B97: 海关监管
A98: 2010912 | B98: 检验检疫
A99: 2010950 | B99: 事业运行
A100: 2010999 | B100: 其他海关事务支出
A101: 20111 | B101: 纪检监察事务 | C101: =SUM(C102:C109) -> 2,377
A102: 2011101 | B102: 行政运行 | C102: 2,319
A103: 2011102 | B103: 一般行政管理事务
A104: 2011103 | B104: 机关服务
A105: 2011104 | B105: 大案要案查处
A106: 2011105 | B106: 派驻派出机构
A107: 2011106 | B107: 巡视工作
A108: 2011150 | B108: 事业运行 | C108: 35
A109: 2011199 | B109: 其他纪检监察事务支出 | C109: 23
A110: 20113 | B110: 商贸事务 | C110: =SUM(C111:C120) -> 1,000
A111: 2011301 | B111: 行政运行 | C111: 831
A112: 2011302 | B112: 一般行政管理事务
A113: 2011303 | B113: 机关服务
A114: 2011304 | B114: 对外贸易管理
A115: 2011305 | B115: 国际经济合作
A116: 2011306 | B116: 外资管理
A117: 2011307 | B117: 国内贸易管理
A118: 2011308 | B118: 招商引资 | C118: 23
A119: 2011350 | B119: 事业运行 | C119: 146
A120: 2011399 | B120: 其他商贸事务支出
A121: 20114 | B121: 知识产权事务 | C121: =SUM(C122:C132) -> 16
A122: 2011401 | B122: 行政运行
A123: 2011402 | B123: 一般行政管理事务
A124: 2011403 | B124: 机关服务
A125: 2011404 | B125: 专利审批
A126: 2011405 | B126: 知识产权战略和规划
A127: 2011408 | B127: 国际合作与交流
A128: 2011409 | B128: 知识产权宏观管理
A129: 2011410 | B129: 商标管理
A130: 2011411 | B130: 原产地地理标志管理
A131: 2011450 | B131: 事业运行
A132: 2011499 | B132: 其他知识产权事务支出 | C132: 16
A133: 20123 | B133: 民族事务 | C133: =SUM(C134:C139) -> 130
A134: 2012301 | B134: 行政运行
A135: 2012302 | B135: 一般行政管理事务
A136: 2012303 | B136: 机关服务
A137: 2012304 | B137: 民族工作专项 | C137: 14
A138: 2012350 | B138: 事业运行
A139: 2012399 | B139: 其他民族事务支出 | C139: 116
A140: 20125 | B140: 港澳台事务 | C140: =SUM(C141:C147) -> 85
A141: 2012501 | B141: 行政运行 | C141: 85
A142: 2012502 | B142: 一般行政管理事务
A143: 2012503 | B143: 机关服务
A144: 2012504 | B144: 港澳事务
A145: 2012505 | B145: 台湾事务
A146: 2012550 | B146: 事业运行
A147: 2012599 | B147: 其他港澳台事务支出
A148: 20126 | B148: 档案事务 | C148: =SUM(C149:C153) -> 242
A149: 2012601 | B149: 行政运行 | C149: 242
A150: 2012602 | B150: 一般行政管理事务
A151: 2012603 | B151: 机关服务
A152: 2012604 | B152: 档案馆
A153: 2012699 | B153: 其他档案事务支出
A154: 20128 | B154: 民主党派及工商联事务 | C154: =SUM(C155:C160) -> 182
A155: 2012801 | B155: 行政运行 | C155: 173
A156: 2012802 | B156: 一般行政管理事务
A157: 2012803 | B157: 机关服务
A158: 2012804 | B158: 参政议政
A159: 2012850 | B159: 事业运行
A160: 2012899 | B160: 其他民主党派及工商联事务支出 | C160: 9
A161: 20129 | B161: 群众团体事务 | C161: =SUM(C162:C167) -> 695
A162: 2012901 | B162: 行政运行 | C162: 563
A163: 2012902 | B163: 一般行政管理事务
A164: 2012903 | B164: 机关服务
A165: 2012906 | B165: 工会事务
A166: 2012950 | B166: 事业运行 | C166: 111
A167: 2012999 | B167: 其他群众团体事务支出 | C167: 21
A168: 20131 | B168: 党委办公厅(室)及相关机构事务 | C168: =SUM(C169:C174) -> 863
A169: 2013101 | B169: 行政运行 | C169: 673
A170: 2013102 | B170: 一般行政管理事务
A171: 2013103 | B171: 机关服务
A172: 2013105 | B172: 专项业务
A173: 2013150 | B173: 事业运行 | C173: 87
A174: 2013199 | B174: 其他党委办公厅(室)及相关机构事务支出 | C174: 103
A175: 20132 | B175: 组织事务 | C175: =SUM(C176:C181) -> 923
A176: 2013201 | B176: 行政运行 | C176: 715
A177: 2013202 | B177: 一般行政管理事务 | C177: 74
A178: 2013203 | B178: 机关服务
A179: 2013204 | B179: 公务员事务
A180: 2013250 | B180: 事业运行 | C180: 102
A181: 2013299 | B181: 其他组织事务支出 | C181: 32
A182: 20133 | B182: 宣传事务 | C182: =SUM(C183:C188) -> 796
A183: 2013301 | B183: 行政运行 | C183: 486
A184: 2013302 | B184: 一般行政管理事务
A185: 2013303 | B185: 机关服务
A186: 2013304 | B186: 宣传管理
A187: 2013350 | B187: 事业运行 | C187: 161
A188: 2013399 | B188: 其他宣传事务支出 | C188: 149
A189: 20134 | B189: 统战事务 | C189: =SUM(C190:C196) -> 400
A190: 2013401 | B190: 行政运行 | C190: 319
A191: 2013402 | B191: 一般行政管理事务
A192: 2013403 | B192: 机关服务
A193: 2013404 | B193: 宗教事务 | C193: 6
A194: 2013405 | B194: 华侨事务
A195: 2013450 | B195: 事业运行 | C195: 75
A196: 2013499 | B196: 其他统战事务支出
A197: 20135 | B197: 对外联络事务 | C197: =SUM(C198:C202) -> 0
A198: 2013501 | B198: 行政运行
A199: 2013502 | B199: 一般行政管理事务
A200: 2013503 | B200: 机关服务
... 1132 more rows

Sheet 表6.本级一般预算基本支出经济分类
A1: 表6
A2: 2024年度本级一般公共预算基本支出决算经济分类表
C3: 单位：万元
A4: 科目编码 | B4: 科目名称 | C4: 一般公共预算基本支出
B6: 一般公共预算支出 | C6: =C7+C12+C23+C31+C38+C42+C45+C49+C54+C60+C64+C69 -> 188,246
A7: 501 | B7: 机关工资福利支出 | C7: =SUM(C8:C11) -> 61,938
A8: 50101 | B8: 工资奖金津补贴 | C8: 42,402
A9: 50102 | B9: 社会保障缴费 | C9: 13,753
A10: 50103 | B10: 住房公积金 | C10: 5,207
A11: 50199 | B11: 其他工资福利支出 | C11: 576
A12: 502 | B12: 机关商品和服务支出 | C12: =SUM(C13:C22) -> 4,214
A13: 50201 | B13: 办公经费 | C13: 3,811
A14: 50202 | B14: 会议费 | C14: 1
A15: 50203 | B15: 培训费 | C15: 18
A16: 50204 | B16: 专用材料购置费
A17: 50205 | B17: 委托业务费 | C17: 37
A18: 50206 | B18: 公务接待费 | C18: 7
A19: 50207 | B19: 因公出国(境)费用
A20: 50208 | B20: 公务用车运行维护费 | C20: 159
A21: 50209 | B21: 维修(护)费 | C21: 63
A22: 50299 | B22: 其他商品和服务支出 | C22: 118
A23: 503 | B23: 机关资本性支出 | C23: =SUM(C24:C30) -> 18
A24: 50301 | B24: 房屋建筑物购建
A25: 50302 | B25: 基础设施建设
A26: 50303 | B26: 公务用车购置
A27: 50305 | B27: 土地征迁补偿和安置支出
A28: 50306 | B28: 设备购置 | C28: 18
A29: 50307 | B29: 大型修缮
A30: 50399 | B30: 其他资本性支出
A31: 504 | B31: 机关资本性支出(基本建设) | C31: =SUM(C32:C37) -> 0
A32: 50401 | B32: 房屋建筑物购建
A33: 50402 | B33: 基础设施建设
A34: 50403 | B34: 公务用车购置
A35: 50404 | B35: 设备购置
A36: 50405 | B36: 大型修缮
A37: 50499 | B37: 其他资本性支出
A38: 505 | B38: 对事业单位经常性补助 | C38: =SUM(C39:C41) -> 105,501
A39: 50501 | B39: 工资福利支出 | C39: 103,394
A40: 50502 | B40: 商品和服务支出 | C40: 2,107
A41: 50599 | B41: 其他对事业单位补助
A42: 506 | B42: 对事业单位资本性补助 | C42: =SUM(C43:C44) -> 0
A43: 50601 | B43: 资本性支出
A44: 50602 | B44: 资本性支出(基本建设)
A45: 507 | B45: 对企业补助 | C45: =SUM(C46:C48) -> 0
A46: 50701 | B46: 费用补贴
A47: 50702 | B47: 利息补贴
A48: 50799 | B48: 其他对企业补助
A49: 508 | B49: 对企业资本性支出 | C49: =SUM(C50:C53) -> 0
A50: 50803 | B50: 资本金注入
A51: 50804 | B51: 资本金注入(基本建设)
A52: 50805 | B52: 政府投资基金股权投资
A53: 50899 | B53: 其他对企业资本性支出
A54: 509 | B54: 对个人和家庭的补助 | C54: =SUM(C55:C59) -> 16,575
A55: 50901 | B55: 社会福利和救助 | C55: 2,381
A56: 50902 | B56: 助学金
A57: 50903 | B57: 个人农业生产补贴
A58: 50905 | B58: 离退休费 | C58: 13,996
A59: 50999 | B59: 其他对个人和家庭的补助 | C59: 198
A60: 510 | B60: 对社会保障基金补助 | C60: =SUM(C61:C63) -> 0
A61: 51002 | B61: 对社会保险基金补助
A62: 51003 | B62: 补充全国社会保障基金
A63: 51004 | B63: 对机关事业单位职业年金的补助
A64: 511 | B64: 债务利息及费用支出 | C64: =SUM(C65:C68) -> 0
A65: 51101 | B65: 国内债务付息
A66: 51102 | B66: 国外债务付息
A67: 51103 | B67: 国内债务发行费用
A68: 51104 | B68: 国外债务发行费用
A69: 599 | B69: 其他支出 | C69: =SUM(C70:C74) -> 0
A70: 59907 | B70: 国家赔偿费用支出
A71: 59908 | B71: 对民间非营利组织和群众性自治组织补贴
A72: 59909 | B72: 经常性赠与
A73: 59910 | B73: 资本性赠与
A74: 59999 | B74: 其他支出

Sheet 表7.税收返还和转移支付决算表
A1: 表7
A2: 2024年一般公共预算对下税收返还及一般性转移支付决算表
C3: 单位：万元
A4: 项目 | B4: 合计 | C4: 槐荫区
A5: 一、返还性支出
A7: 二、一般性转移支付
A22: 合 计 | B22: 0 | C22: 0
A23: 备注：槐荫区无对下税收返还及一般性转移支付，此表为空表

Sheet 表8.专项转移支付分地区分项目
A1: 表8
A2: 2024年一般公共预算安排的专项转移支付分地区、分项目决算表
B3: 单位：万元
A4: 项 目 | B4: 槐荫区
A5: 合 计 | B5: 0
A6: 一、一般公共服务方面
A7: 二、公共安全方面
A8: 三、教育方面
A9: 四、科学技术方面
A10: 其中：人才建设资金
A11: 科技创新发展资金
A12: 五、文化旅游体育与传媒方面
A13: 其中：宣传文化旅游发展资金
A14: 六、社会保障和就业方面
A15: 其中：残疾人康复和就业资金
A16: 基本建设投资
A17: 七、卫生健康方面
A18: 其中：卫生健康资金
A19: 基本建设投资
A20: 八、节能环保方面
A21: 其中：环境污染防治资金
A22: 基本建设投资
A23: 住房和城镇化建设资金
A24: 九、城乡社区方面
A25: 其中：基本建设投资
A26: 住房和城镇化建设资金
A27: 十、农林水方面
A28: 其中：乡村振兴重大专项资金
A29: 基本建设投资
A30: 十一、交通运输方面
A31: 其中：交通发展资金
A32: 十二、资源勘探工业信息等方面
A33: 其中：工业转型发展资金
A34: 十三、商业服务业等方面
A35: 其中：工业转型发展资金
A36: 商贸发展和市场开拓资金
A37: 十四、金融方面
A38: 其中：金融发展资金
A39: 十五、自然资源海洋气象等方面
A40: 其中：国土勘探和治理资金
A41: 十六、住房保障方面
A42: 其中：基本建设投资
A43: 十七、粮油物资储备方面
A44: 其中：基本建设投资
A45: 十八、灾害防治及应急管理方面
A46: 其中：安全生产和应急管理资金
A47: 金融发展资金
A48: 十九、其他方面
A49: 备注：槐荫区无对下税收返还及一般性转移支付，此表为空表

Sheet 表9.基金（含转移支付）收入执行
A1: 表9
A2: 2024年槐荫区政府性基金预算（含转移支付）收入决算表
F3: 单位：万元
A4: 项目 | B4: 2024年预期数 | C4: 调整预期数 | D4: 2024年决算数 | G4: 备注2023
D5: 金额 | E5: 占调整预期% | F5: 比上年增长%
A6: 本年收入合计 | B6: =B7 -> 509,500 | C6: =C7 -> 248,031 | D6: =D7 -> 254,211 | E6: =D6/C6*100 -> 102.5 | F6: =(D6-G6)/G6*100 -> 73.2 | G6: 146,772
A7: 转移性收入 | B7: =SUM(B10:B12) -> 509,500 | C7: =SUM(C10:C12) -> 248,031 | D7: =SUM(D10:D12) -> 254,211 | E7: =D7/C7*100 -> 102.5 | F7: =(D7-G7)/G7*100 -> 73.2 | G7: 146,772
A8: 返还性收入
A9: 一般性转移支付收入
A10: 专项转移支付收入 | B10: 440,000 | C10: 123,390 | D10: 129,369 | E10: =D10/C10*100 -> 104.8 | F10: =(D10-G10)/G10*100 -> 88.4 | G10: 68,665
A11: 地方政府债券转贷收入 | B11: 54,000 | C11: 105,600 | D11: 105,600 | E11: =D11/C11*100 -> 100.0 | F11: =(D11-G11)/G11*100 -> 60.0 | G11: 66,000
A12: 调入资金 | B12: 15,500 | C12: 19,041 | D12: 19,242 | E12: 101.1 | F12: =(D12-G12)/G12*100 -> 58.9 | G12: 12,107
A13: 上年结转及结余收入 | B13: 23 | C13: 175 | D13: 175 | E13: 100.0 | F13: =(D13-G13)/G13*100 -> -99.3 | G13: 24,293
A14: 总收入合计 | B14: =B7+B13 -> 509,523 | C14: =C7+C13 -> 248,206 | D14: =D7+D13 -> 254,386 | E14: 102.5 | F14: =(D14-G14)/G14*100 -> 48.7 | G14: 171,065

Sheet 表10.基金（转移支付）支出执行
A1: 表10
A2: 2024年槐荫区政府性基金预算支出决算表
F3: 单位：万元
A4: 项目 | B4: 2024年预期数 | C4: 调整预期数 | D4: 2024年决算数（含转移支付） | G4: 2023年
D5: 金额 | E5: 占调整预期% | F5: 比上年增长%
A6: 一、教育
A7: 二、科学技术
A8: 三、文化旅游体育与传媒 | C8: 6 | D8: 38 | E8: =D8/C8*100 -> 633.3 | F8: =(D8-G8)/G8*100 -> -36.2 | G8: 60
A9: 四、社会保障和就业
A10: 五、节能环保
A11: 六、城乡社区事务 | B11: 436,830 | C11: 83,525 | D11: 82,603 | E11: =D11/C11*100 -> 98.9 | F11: =(D11-G11)/G11*100 -> -5.0 | G11: 86,973
A12: 七、农林水事务
A13: 八、交通运输
A14: 九、资源勘探电力信息等事务
A15: 十、商业服务业等事务
A16: 十一、金融监管等事务
A17: 十二、其他支出 | B17: 150 | C17: 51,871 | D17: 51,892 | E17: =D17/C17*100 -> 100.0 | F17: 34.9 | G17: 38,469
A18: 十三、债务付息支出 | B18: 12,543 | C18: 13,156 | D18: 13,156 | E18: =D18/C18*100 -> 100.0 | F18: 9.1 | G18: 12,054
A19: 十四、抗疫特别国债安排的支出
A20: 支出合计 | B20: =SUM(B7:B18) -> 449,523 | C20: =SUM(C7:C18) -> 148,558 | D20: =SUM(D7:D19) -> 147,689 | E20: 99.4 | F20: 7.4 | G20: 137,556
A21: 转移性支出 | B21: =SUM(B22:B24) -> 60,000 | C21: =SUM(C22:C24) -> 60,060 | D21: =SUM(D22:D24) -> 60,089 | E21: 100.0 | F21: 80.3 | G21: 33,334
A22: 上解支出 | C22: 60 | D22: 84 | E22: 140.0 | F22: 58.5 | G22: 53
A23: 调出资金 | D23: 5 | F23: -99.9 | G23: 5,081
A24: 债务还本支出 | B24: 60,000 | C24: 60,000 | D24: 60,000 | E24: =D24/C24*100 -> 100.0 | F24: 112.8 | G24: 28,200
A25: 结转下年支出 | C25: 39,588 | D25: 46,608 | E25: =D25/C25*100 -> 117.7 | F25: 26,533.1 | G25: 175
A26: 总支出合计 | B26: =SUM(B20:B21)+B25 -> 509,523 | C26: 248,206 | D26: 254,386 | E26: =D26/C26*100 -> 102.5 | F26: 48.7 | G26: 171,065

Sheet 表11.本级基金收入
A1: 表11
A2: 2024年槐荫区本级政府性基金预算（含转移支付）收入决算表
F3: 单位：万元
A4: 项目 | B4: 2024年预期数 | C4: 调整预期数 | D4: 2024年决算数 | G4: 备注2023
D5: 金额 | E5: 占调整预期% | F5: 比上年增长%
A6: 本年收入合计 | B6: =B7 -> 509,500 | C6: =C7 -> 248,031 | D6: =D7 -> 254,211 | E6: =D6/C6*100 -> 102.5 | F6: =(D6-G6)/G6*100 -> 73.2 | G6: 146,772
A7: 转移性收入 | B7: =SUM(B10:B12) -> 509,500 | C7: =SUM(C10:C12) -> 248,031 | D7: =SUM(D10:D12) -> 254,211 | E7: 102.5 | F7: 73.2 | G7: 146,772
A8: 返还性收入
A9: 一般性转移支付收入
A10: 专项转移支付收入 | B10: 440,000 | C10: 123,390 | D10: 129,369 | E10: 104.8 | F10: 88.4 | G10: 68,665
A11: 地方政府债券转贷收入 | B11: 54,000 | C11: 105,600 | D11: 105,600 | E11: 100.0 | F11: 60.0 | G11: 66,000
A12: 调入资金 | B12: 15,500 | C12: 19,041 | D12: 19,242 | E12: 101.1 | F12: 58.9 | G12: 12,107
A13: 上年结转及结余收入 | B13: 23 | C13: 175 | D13: 175 | E13: 100.0 | F13: -99.3 | G13: 24,293
A14: 总收入合计 | B14: =B7+B13 -> 509,523 | C14: =C7+C13 -> 248,206 | D14: =D7+D13 -> 254,386 | E14: 102.5 | F14: 48.7 | G14: 171,065

Sheet 表12.本级基金支出
A1: 表12
A2: 2024年槐荫区本级政府性基金预算支出决算表
F3: 单位：万元
A4: 项目 | B4: 2024年预期数 | C4: 调整预期数 | D4: 2024年决算数（含转移支付） | G4: 2023年
D5: 金额 | E5: 占调整预期% | F5: 比上年增长%
A6: 一、教育
A7: 二、科学技术
A8: 三、文化旅游体育与传媒 | C8: 6 | D8: 38 | E8: =D8/C8*100 -> 633.3 | F8: =(D8-G8)/G8*100 -> -36.2 | G8: 60
A9: 四、社会保障和就业
A10: 五、节能环保
A11: 六、城乡社区事务 | B11: 436,830 | C11: 83,525 | D11: 82,603 | E11: =D11/C11*100 -> 98.9 | F11: =(D11-G11)/G11*100 -> -5.0 | G11: 86,973
A12: 七、农林水事务
A13: 八、交通运输
A14: 九、资源勘探电力信息等事务
A15: 十、商业服务业等事务
A16: 十一、金融监管等事务
A17: 十二、其他支出 | B17: 150 | C17: 51,871 | D17: 51,892 | E17: =D17/C17*100 -> 100.0 | F17: =(D17-G17)/G17*100 -> 34.9 | G17: 38,469
A18: 十三、债务付息支出 | B18: 12,543 | C18: 13,156 | D18: 13,156 | E18: 100.0 | F18: 9.1 | G18: 12,054
A19: 十四、抗疫特别国债安排的支出
A20: 支出合计 | B20: =SUM(B7:B18) -> 449,523 | C20: =SUM(C7:C18) -> 148,558 | D20: =SUM(D7:D19) -> 147,689 | E20: 99.4 | F20: 7.4 | G20: 137,556
A21: 转移性支出 | B21: =SUM(B22:B24) -> 60,000 | C21: =SUM(C22:C24) -> 60,060 | D21: =SUM(D22:D24) -> 60,089 | E21: 100.0 | F21: 80.3 | G21: 33,334
A22: 上解支出 | C22: 60 | D22: 84 | E22: 140.0 | F22: 58.5 | G22: 53
A23: 调出资金 | D23: 5 | F23: -99.9 | G23: 5,081
A24: 债务还本支出 | B24: 60,000 | C24: 60,000 | D24: 60,000 | E24: =D24/C24*100 -> 100.0 | F24: 112.8 | G24: 28,200
A25: 结转下年支出 | C25: 39,588 | D25: 46,608 | E25: 117.7 | F25: 26,533.1 | G25: 175
A26: 总支出合计 | B26: =SUM(B20:B21)+B25 -> 509,523 | C26: =SUM(C20:C21)+C25 -> 248,206 | D26: =SUM(D20:D21)+D25 -> 254,386 | E26: 102.5 | F26: 48.7 | G26: 171,065

Sheet 表13.基金转移支付
A1: 表13
A2: 2024年槐荫区政府性基金对下转移支付分项目、分地区决算表
C3: 单位：万元
A4: 项 目 | B4: 合计 | C4: 槐荫区 | D4: **县
A5: 合 计 | B5: 0 | C5: 0 | F5: =IF(B5=SUM(B6:B14),"","1") -> 
A6: 一、国家电影事业发展专项资金
A7: 二、旅游发展基金
A8: 三、大中型水库移民后期扶持基金
A9: 四、国有土地使用权出让收入及对应专项债务收入安排的支出
A10: 五、国家重大水利工程建设基金
A11: 六、港口建设费安排的支出
A12: 七、民航发展基金
A13: 八、彩票公益金及彩票发行销售机构业务费安排的支出
A14: 九、其他政府性基金及对应专项债务收入安排的支出
A15: 备注：槐荫区无政府性基金对下转移支付，此表为空表

Sheet 表14.国有资本经营预算收入表
A1: 表14
A2: 2024年槐荫区国有资本经营预算收入决算表
F3: 单位：万元
A4: 项目 | B4: 2024预期数 | C4: 2024年调整预期数 | D4: 2024年决算数 | G4: 2023
D5: 金额 | E5: 占调整预期% | F5: 比上年增长%
A6: 一、利润收入
A7: 建筑施工企业利润收入
A8: 其他国有资本经营预算企业利润收入
A9: 二、股利股息收入 | B9: 360 | C9: 342 | D9: 342 | E9: =D9/C9*100 -> 100 | F9: =(D9-G9)/G9*100 -> -38.1 | G9: 552.13
A10: 三、产权转让收入
A11: 四、清算收入
A12: 五、其他国有资本经营预算收入
A13: 六、上级补助收入 | B13: 254 | C13: 302 | D13: 302 | E13: =D13/C13*100 -> 100 | F13: =(D13-G13)/G13*100 -> -5.9 | G13: 321
A14: 本年收入合计 | B14: =B6+B9+B10+B11+B12+B13 -> 614 | C14: 644 | D14: 644 | E14: =D14/C14*100 -> 100 | F14: -26.2 | G14: 873
A15: 上年结转收入 | B15: 688 | C15: 688 | D15: 688 | E15: =D15/C15*100 -> 100 | F15: 127.8 | G15: 302
A16: 收入总计 | B16: =B14+B15 -> 1,302 | C16: =C14+C15 -> 1,332 | D16: =D14+D15 -> 1,332 | E16: 100 | F16: =(D16-G16)/G16*100 -> 13.4 | G16: 1175

Sheet 表15.国有资本经营预算支出表
A1: 表15
A2: 2024年槐荫区国有资本经营预算支出执行情况表
F3: 单位：万元
A4: 项目 | B4: 2024年预期数 | C4: 2024年调整预期数 | D4: 2024年决算数 | G4: 2023
D5: 金额 | E5: 占调整预期% | F5: 比上年增长%
A6: 一、社会保障和就业支出 | B6: 0 | C6: 0 | D6: 0
A7: 二、国有资本经营预算支出 | B7: =B8+B11 -> 1,176 | C7: =C8+C11 -> 255 | D7: 109 | E7: =D7/C7*100 -> 42.75 | F7: =(D7-G7)/G7*100 -> -66.0 | G7: 321
A8: 解决历史遗留问题及改革成本支出 | B8: 556 | C8: 255 | D8: 109 | E8: 42.75 | F8: =(D8-G8)/G8*100 -> -66.0 | G8: 321
A9: 国有企业退休人员社会化管理补助支出 | B9: 556 | C9: 255 | D9: 109 | E9: 42.75 | F9: =(D9-G9)/G9*100 -> -63.9 | G9: 302.28
A10: 其他解决历史遗留问题及改革成本支出 | G10: 19.06
A11: 其他国有资本经营预算支出 | B11: 620
A12: 其他国有资本经营预算支出 | B12: 620
A13: 本年支出合计 | B13: =B7+B6 -> 1,176 | C13: =C7+C6 -> 255 | D13: =D7+D6 -> 109 | E13: =D13/C13*100 -> 42.75 | F13: =(D13-G13)/G13*100 -> -66.0 | G13: 321
A14: 调出资金 | B14: 126 | C14: 120 | D14: 120 | E14: 100.00 | F14: -27.7 | G14: 166
A15: 结转下年支出合计 | B15: 0 | C15: 957 | D15: 1,103 | E15: 115.26 | F15: 60.3 | G15: 688
A16: 支出总计 | B16: =B15+B13+B14 -> 1,302 | C16: =C15+C13+C14 -> 1,332 | D16: =D15+D13+D14 -> 1,332 | E16: 100.00 | F16: 13.4 | G16: 1175

Sheet 表16.本级国有资本收入表
A1: 表16
A2: 2024年槐荫区本级国有资本经营预算收入决算表
F3: 单位：万元
A4: 项目 | B4: 2024预期数 | C4: 2024年调整预期数 | D4: 2024年决算数 | G4: 2023
D5: 金额 | E5: 占调整预期% | F5: 比上年增长%
A6: 一、利润收入
A7: 建筑施工企业利润收入
A8: 其他国有资本经营预算企业利润收入
A9: 二、股利股息收入 | B9: 360 | C9: 342 | D9: 342 | E9: =D9/C9*100 -> 100 | F9: =(D9-G9)/G9*100 -> -38.1 | G9: 552.13
A10: 三、产权转让收入
A11: 四、清算收入
A12: 五、其他国有资本经营预算收入
A13: 六、上级补助收入 | B13: 254 | C13: 302 | D13: 302 | E13: 100 | F13: -5.9 | G13: 321
A14: 本年收入合计 | B14: =B6+B9+B10+B11+B12+B13 -> 614 | C14: =C6+C9+C10+C11+C12+C13 -> 644 | D14: =D6+D9+D10+D11+D12+D13 -> 644 | E14: 100 | F14: -26.2 | G14: 873
A15: 上年结转收入 | B15: 688 | C15: 688 | D15: 688 | E15: 100 | F15: 127.8 | G15: 302
A16: 收入总计 | B16: =B14+B15 -> 1,302 | C16: =C14+C15 -> 1,332 | D16: =D14+D15 -> 1,332 | E16: 100 | F16: 13.4 | G16: 1175

Sheet 表17.本级国有资本支出表
A1: 表17
A2: 2024年槐荫区本级国有资本经营预算支出执行情况表
F3: 单位：万元
A4: 项目 | B4: 2024年预期数 | C4: 2024年调整预期数 | D4: 2024年决算数 | G4: 2023
D5: 金额 | E5: 占调整预期% | F5: 比上年增长%
A6: 一、社会保障和就业支出 | B6: 0 | C6: 0 | D6: 0
A7: 二、国有资本经营预算支出 | B7: =B8+B11 -> 1,176 | C7: =C8+C11 -> 255 | D7: 109 | E7: =D7/C7*100 -> 42.75 | F7: =(D7-G7)/G7*100 -> -66.0 | G7: 321
A8: 解决历史遗留问题及改革成本支出 | B8: 556 | C8: 255 | D8: 109 | E8: 42.75 | F8: -66.0 | G8: 321
A9: 国有企业退休人员社会化管理补助支出 | B9: 556 | C9: 255 | D9: 109 | E9: 42.75 | F9: -63.9 | G9: 302.28
A10: 其他解决历史遗留问题及改革成本支出 | G10: 19.06
A11: 其他国有资本经营预算支出 | B11: 620
A12: 其他国有资本经营预算支出 | B12: 620
A13: 本年支出合计 | B13: =B7+B6 -> 1,176 | C13: =C7+C6 -> 255 | D13: =D7+D6 -> 109 | E13: =D13/C13*100 -> 42.75 | F13: =(D13-G13)/G13*100 -> -66.0 | G13: 321
A14: 调出资金 | B14: 126 | C14: 120 | D14: 120 | E14: 100.00 | F14: -27.7 | G14: 166
A15: 结转下年支出合计 | B15: 0 | C15: 957 | D15: 1,103 | E15: 115.26 | F15: 60.3 | G15: 688
A16: 支出总计 | B16: =B15+B13+B14 -> 1,302 | C16: =C15+C13+C14 -> 1,332 | D16: =D15+D13+D14 -> 1,332 | E16: 100.00 | F16: 13.4 | G16: 1175

Sheet 表18.国资转移支付
A1: 表18
A2: 2024年槐荫区对下国有资本经营预算转移支付分项目分地区决算表
D3: 单位：万元
A4: 地 区 | B4: 合 计 | C4: 其中：
C5: 国有企业退休人员社会化管理支出 | D5: 省属困难企业独生子女父母养老补助
A6: 槐荫区 | B6: 0
A22: 合 计
A23: 备注：槐荫区为无国有资本对下转移支付，此表为空表

Sheet 表19.社保基金收入执行
A1: 表19
A2: 2024年槐荫区社会保险基金预算收入决算表
E3: 单位：万元
A4: 项目 | B4: 2024年预算数 | C4: 2024年决算数 | F4: 2023
C5: 金额 | D5: 占预算% | E5: 比上年增长%
A6: 一、城乡居民基本养老保险基金收入 | B6: =SUM(B7:B9) -> 12,008 | C6: 14,954 | D6: =C6/B6*100 -> 124.5 | E6: =(C6-F6)/F6*100 -> 22.0 | F6: 12,257
A7: 其中：保险费收入 | B7: 1,470 | C7: 1,535 | D7: 104.4 | E7: 6.4 | F7: 1,443
A8: 财政补贴收入 | B8: 6,975 | C8: 5,622 | D8: 80.6 | E8: -8.8 | F8: 6,166
A9: 其他收入 | B9: 3,563 | C9: 7,797 | D9: 218.8 | E9: 67.7 | F9: 4,648
A10: 二、机关事业单位养老保险基金收入 | B10: =SUM(B11:B13) -> 46,549 | C10: 47,801 | D10: 102.7 | E10: 14.6 | F10: 41,706
A11: 其中：保险费收入 | B11: 22,449 | C11: 23,780 | D11: 105.9 | E11: -5.9 | F11: 25,280
A12: 财政补贴收入 | B12: 23,000 | C12: 23,000 | D12: 100.0 | E12: 53.3 | F12: 15,000
A13: 其他收入 | B13: 1,100 | C13: 1,021 | D13: 92.8 | E13: -28.4 | F13: 1,426
A14: 社会保险基金收入合计 | B14: =SUM(B15:B17) -> 58,557 | C14: 62,755 | D14: 107.2 | E14: 16.3 | F14: 53,963
A15: 其中：保险费收入 | B15: 23,919 | C15: 25,315 | D15: 105.8 | E15: -5.3 | F15: 26,723
A16: 财政补贴收入 | B16: 29,975 | C16: 28,622 | D16: 95.5 | E16: 35.2 | F16: 21,166
A17: 其他收入 | B17: 4,663 | C17: 8,818 | D17: 189.1 | E17: 45.2 | F17: 6,074

Sheet 表20.社保基金支出执行
A1: 表20
A2: 2024年槐荫区社会保险基金预算支出决算表
E3: 单位：万元
A4: 项目 | B4: 2024年预算数 | C4: 2024年决算数 | F4: 2023
C5: 金额 | D5: 占预期% | E5: 比上年增长%
A6: 一、城乡居民基本养老保险基金支出 | B6: =SUM(B7:B8) -> 11,726 | C6: 10,739 | D6: =C6/B6*100 -> 91.6 | E6: =(C6-F6)/F6*100 -> 4.7 | F6: 10261
A7: 其中：基本养老保险待遇金支出 | B7: 11,650 | C7: 10,612 | D7: 91.1 | E7: 4.2 | F7: 10181
A8: 其他支出 | B8: 76 | C8: 127 | D8: 167.1 | E8: 58.8 | F8: 80
A9: 二、机关事业单位养老保险基金支出 | B9: =SUM(B10:B11) -> 45,470 | C9: 46,062 | D9: 101.3 | E9: 4.7 | F9: 43975
A10: 其中：基本养老保险待遇金支出 | B10: 45,380 | C10: 46,009 | D10: 101.4 | E10: 4.8 | F10: 43893
A11: 其他支出 | B11: 90 | C11: 53 | D11: 58.9 | E11: -35.4 | F11: 82
A12: 社会保险基金支出合计 | B12: =SUM(B13:B14) -> 57,196 | C12: 56,801 | D12: 99.3 | E12: 4.7 | F12: 54236
A13: 其中：社会保险待遇金支出 | B13: 57,030 | C13: 56,621 | D13: 99.3 | E13: 4.7 | F13: 54074
A14: 其他支出 | B14: 166 | C14: 180 | D14: 108.4 | E14: 11.1 | F14: 162

Sheet 表21.社保基金结余
A1: 表21
A2: 2024年槐荫区社会保险基金预算结余表
C3: 单位：万元
A4: 项目 | B4: 2024年决算数 | C4: 备注
A5: 一、社会保险基金本年收支结余合计 | B5: =SUM(B6:B7) -> 5,954
A6: （一）城乡居民基本养老保险基金 | B6: 4,215
A7: （二）机关事业单位养老保险基金 | B7: 1,739
A8: 二、社会保险基金年末滚存结余合计 | B8: =SUM(B9:B10) -> 89,935
A9: （一）城乡居民基本养老保险基金 | B9: 84,075
A10: （二）机关事业单位养老保险基金 | B10: 5,860

Sheet 表22.本级社保收入
A1: 表22
A2: 2024年槐荫区本级社会保险基金预算收入决算表
E3: 单位：万元
A4: 项目 | B4: 2024年预算数 | C4: 2024年决算数 | F4: 2023
C5: 金额 | D5: 占预算% | E5: 比上年增长%
A6: 一、城乡居民基本养老保险基金收入 | B6: =SUM(B7:B9) -> 12,008 | C6: 14,954 | D6: =C6/B6*100 -> 124.5 | E6: =(C6-F6)/F6*100 -> 22.0 | F6: 12,257
A7: 其中：保险费收入 | B7: 1,470 | C7: 1,535 | D7: 104.4 | E7: 6.4 | F7: 1,443
A8: 财政补贴收入 | B8: 6,975 | C8: 5,622 | D8: 80.6 | E8: -8.8 | F8: 6,166
A9: 其他收入 | B9: 3,563 | C9: 7,797 | D9: 218.8 | E9: 67.7 | F9: 4,648
A10: 二、机关事业单位养老保险基金收入 | B10: =SUM(B11:B13) -> 46,549 | C10: 47,801 | D10: 102.7 | E10: 14.6 | F10: 41,706
A11: 其中：保险费收入 | B11: 22,449 | C11: 23,780 | D11: 105.9 | E11: -5.9 | F11: 25,280
A12: 财政补贴收入 | B12: 23,000 | C12: 23,000 | D12: 100.0 | E12: 53.3 | F12: 15,000
A13: 其他收入 | B13: 1,100 | C13: 1,021 | D13: 92.8 | E13: -28.4 | F13: 1,426
A14: 社会保险基金收入合计 | B14: =SUM(B15:B17) -> 58,557 | C14: 62,755 | D14: 107.2 | E14: 16.3 | F14: 53,963
A15: 其中：保险费收入 | B15: 23,919 | C15: 25,315 | D15: 105.8 | E15: -5.3 | F15: 26,723
A16: 财政补贴收入 | B16: 29,975 | C16: 28,622 | D16: 95.5 | E16: 35.2 | F16: 21,166
A17: 其他收入 | B17: 4,663 | C17: 8,818 | D17: 189.1 | E17: 45.2 | F17: 6,074

Sheet 表23.本级社保支出
A1: 表23
A2: 2024年槐荫区本级社会保险基金预算支出决算表
E3: 单位：万元
A4: 项目 | B4: 2024年预算数 | C4: 2024年决算数 | F4: 2023
C5: 金额 | D5: 占预期% | E5: 比上年增长%
A6: 一、城乡居民基本养老保险基金支出 | B6: =SUM(B7:B8) -> 11,726 | C6: 10,739 | D6: =C6/B6*100 -> 91.6 | E6: =(C6-F6)/F6*100 -> 4.7 | F6: 10261
A7: 其中：基本养老保险待遇金支出 | B7: 11,650 | C7: 10,612 | D7: 91.1 | E7: 4.2 | F7: 10181
A8: 其他支出 | B8: 76 | C8: 127 | D8: 167.1 | E8: 58.8 | F8: 80
A9: 二、机关事业单位养老保险基金支出 | B9: =SUM(B10:B11) -> 45,470 | C9: 46,062 | D9: 101.3 | E9: 4.7 | F9: 43975
A10: 其中：基本养老保险待遇金支出 | B10: 45,380 | C10: 46,009 | D10: 101.4 | E10: 4.8 | F10: 43893
A11: 其他支出 | B11: 90 | C11: 53 | D11: 58.9 | E11: -35.4 | F11: 82
A12: 社会保险基金支出合计 | B12: =SUM(B13:B14) -> 57,196 | C12: 56,801 | D12: 99.3 | E12: 4.7 | F12: 54236
A13: 其中：社会保险待遇金支出 | B13: 57,030 | C13: 56,621 | D13: 99.3 | E13: 4.7 | F13: 54074
A14: 其他支出 | B14: 166 | C14: 180 | D14: 108.4 | E14: 11.1 | F14: 162

Sheet 表24.本级社保结余
A1: 表24
A2: 2024年槐荫区本级社会保险基金预算结余表
C3: 单位：万元
A4: 项目 | B4: 2024年决算数 | C4: 备注
A5: 一、社会保险基金本年收支结余合计 | B5: =SUM(B6:B7) -> 5,954
A6: （一）城乡居民基本养老保险基金 | B6: 4,215
A7: （二）机关事业单位养老保险基金 | B7: 1,739
A8: 二、社会保险基金年末滚存结余合计 | B8: =SUM(B9:B10) -> 89,935
A9: （一）城乡居民基本养老保险基金 | B9: 84,075
A10: （二）机关事业单位养老保险基金 | B10: 5,860

Sheet 表25.限额余额情况表
A1: 表25
A2: 2024年槐荫区地方政府债务限额余额情况表
D3: 单位：万元
A4: 地 区 | B4: 2023年政府债务余额 | C4: 2024年政府债务限额 | D4: 2024年政府债务余额
A5: 槐荫区 | B5: 429,424 | C5: 677,743 | D5: =670114-45090 -> 625,024

Sheet 表26.一般限额余额
A1: 表26
A2: 2024年槐荫区地方政府一般债务限额余额情况表
D3: 单位：万元
A4: 地 区 | B4: 2023年政府一般债务余额 | C4: 2024年政府一般债务限额 | D4: 2024年政府一般债务余额
A5: 槐荫区 | B5: 56,324 | C5: 58,563 | D5: 56,324

Sheet 表27.专项限额余额
A1: 表27
A2: 2024年槐荫区地方政府专项债务限额余额情况表
D3: 单位：万元
A4: 地 区 | B4: 2023年政府专项债务余额 | C4: 2024年政府专项债务限额 | D4: 2024年政府专项债务余额
A5: 槐荫区 | B5: 373,100 | C5: 619,180 | D5: =613790-45090 -> 568,700

Sheet 表28.债券发行情况
A1: 表28
A2: 2024年槐荫区地方政府债券发行情况表
H3: 单位：万元
A4: 地 区 | B4: 合计 | C4: 一般债券额度 | F4: 专项债券额度
C5: 小计 | D5: 新增一般 债券 | E5: 再融资债券 | F5: 小计 | G5: 新增专项 债券 | H5: 再融资 专项债券
A6: 槐荫区 | B6: =C6+F6 -> 261,000 | C6: 5,400 | D6: 0 | E6: 5,400 | F6: =SUM(G6:H6) -> 255,600 | G6: 51,600 | H6: =54000+150000 -> 204,000

Sheet 表29.还本付息情况
A1: 表29
A2: 2024年槐荫区地方政府债券还本付息情况表
G3: 单位：万元
A4: 地 区 | B4: 政府债券还本支出 | E4: 政府债券付息支出
B5: 合计 | C5: 其中：一般公共预算和政府性基金预算安排债务还本支出 | D5: 其中：发行再融资债券还本支出 | E5: 合计 | F5: 一般债券付息支出 | G5: 专项债券付息支出
A6: 槐荫区 | B6: =C6+D6 -> 65,400 | C6: 6,000 | D6: =5400+54000 -> 59,400 | E6: =F6+G6 -> 14,952 | F6: 1,796 | G6: 13,156

Sheet 表30.专项债券分用途表
A1: 表30
A2: 2024年槐荫区地方政府新增专项债券分用途表
J3: 单位：万元
A4: 地 区 | B4: 小计 | C4: 交通 | D4: 农林水利建设 | E4: 保障性安居工程及城市更新 | F4: 土地储备 | G4: 环境保护 | H4: 教科文卫 | I4: 市政建设 | J4: 社会保障
A5: 槐荫区 | B5: 51,600 | D5: =17000-1125 -> 15,875 | E5: 12,800 | H5: 2,000 | I5: 20,925

Sheet 表31.债务情况决算表
A1: 表31
A2: 2024年槐荫区地方政府债务收支决算表
B3: 单位：万元
A4: 项目 | B4: 金额
A5: 一、2023年末政府债务余额 | B5: =SUM(B6:B7) -> 429,424
A6: 其中：一般债务 | B6: 56,324
A7: 专项债务 | B7: 373,100
A8: 二、2023年末政府债务限额 | B8: =SUM(B9:B10) -> 433,915
A9: 其中：一般债务限额 | B9: 60,815
A10: 专项债务限额 | B10: 373,100
A11: 三、2024年地方政府债务举借额 | B11: =B12 -> 261,000
A12: 政府债券 | B12: =B13+B14+B15+B16 -> 261,000
A13: 新增一般债券发行额 | B13: 0
A14: 再融资一般债券发行额 | B14: 5,400
A15: 新增专项债券发行额 | B15: 51,600
A16: 再融资专项债券发行额 | B16: =54000+150000 -> 204,000
A17: 四、2024年地方政府债务还本额 | B17: =SUM(B18:B19) -> 65,400
A18: 其中：一般债务还本额 | B18: 5,400
A19: 专项债务还本额 | B19: 60,000
A20: 五、2024年地方政府债务付息 | B20: =SUM(B21:B22) -> 14,952
A21: 一般债务付息 | B21: 1,796
A22: 专项债务付息 | B22: 13,156
A23: 六、2024年末地方政府债务余额 | B23: =SUM(B24:B25) -> 625,024
A24: 其中：一般债务 | B24: 56,324
A25: 专项债务 | B25: =613790-45090 -> 568,700
A26: 七、2024年地方政府债务限额 | B26: =SUM(B27:B28) -> 677,743
A27: 其中：一般债务 | B27: 58,563
A28: 专项债务 | B28: 619,180
